bitfinex/quotes_SOLUSD_20240711
["timestamp","ask_amount","ask_price","bid_price","bid_amount"]
[1720720961206,7.38973995,138.48,138.47,14.0]
[1720720961508,21.2193,138.52,138.47,21.2217]
[1720720961718,14.60547601,138.52,138.47,21.2217]
[1720720962010,28.60547601,138.52,138.47,21.2217]
[1720720962206,7.38617601,138.52,138.48,21.2211]
[1720720963922,14.60547601,138.52,138.48,14.0]
[1720720964808,7.38617601,138.52,138.49,14.0]
[1720720965201,7.38617601,138.52,138.49,7.2206]
[1720720965410,7.38617601,138.52,138.49,21.2206]
[1720720965726,0.24919,138.53,138.49,21.2207]
[1720720965899,20.24919,138.53,138.49,21.2207]
[1720720966590,27.46779,138.53,138.49,14.0]
[1720720966793,20.24919,138.53,138.49,14.0]
[1720720967309,27.46779,138.53,138.49,14.0]
[1720720967900,41.46779,138.53,138.48,39.274]
[1720720968105,41.46779,138.53,138.49,45.0]
[1720720968298,7.2194,138.52,138.47,7.3917]
[1720720968507,21.2199,138.51,138.46,29.6545]
[1720720968710,14.0,138.51,138.47,45.0]
[1720720968900,14.0,138.51,138.46,43.6545]
[1720720968901,21.2197,138.51,138.46,43.6545]
[1720720969432,14.0,138.51,138.47,7.2217]
[1720720970012,7.2203,138.5,138.45,25.2785]
[1720720970191,14.0,138.49,138.45,25.2785]
[1720720970396,7.2199,138.51,138.46,7.2221]
[1720720970618,14.0,138.5,138.46,7.2221]
[1720720971005,21.2203,138.5,138.45,39.2785]
[1720720971303,21.2203,138.5,138.45,25.2785]
[1720720971505,21.2203,138.5,138.45,39.2785]
[1720720971812,14.0,138.49,138.45,25.2785]
[1720720972027,7.2203,138.5,138.45,39.2785]
[1720720972329,14.0,138.49,138.45,18.0558]
[1720720972612,14.0,138.49,138.45,25.2784]
[1720720973612,7.221,138.49,138.44,7.2231]
[1720720973799,14.0,138.47,138.43,7.2237]
[1720720974006,14.0,138.46,138.42,47.6671]
[1720720974202,14.0,138.46,138.43,7.2237]
[1720720974930,14.0,138.47,138.43,7.2237]
[1720720975799,14.0,138.47,138.44,7.2233]
[1720720976335,14.0,138.47,138.42,32.0597]
[1720720976336,14.0,138.46,138.42,25.2836]
[1720720976817,14.0,138.47,138.43,7.2237]
[1720720980224,14.0,138.46,138.43,7.2237]
[1720720980431,14.0,138.47,138.44,7.2232]
[1720720980610,21.37641404,138.48,138.45,7.2227]
[1720720980921,21.37641404,138.48,138.44,18.0582]
[1720720980922,21.37641404,138.48,138.44,25.2813]
[1720720981107,28.59761404,138.48,138.44,18.0582]
[1720720981927,14.0,138.47,138.44,18.0582]
[1720720982521,21.37641404,138.48,138.45,7.2227]
[1720720982723,7.37641404,138.48,138.46,7.2219]
[1720720983022,14.0,138.48,138.44,18.0582]
[1720720983222,14.0,138.47,138.44,25.2813]
[1720720983934,14.0,138.47,138.44,18.0582]
[1720720984942,14.0,138.47,138.44,25.2815]
[1720720985229,14.0,138.48,138.45,7.2224]
[1720720985524,28.60192394,138.49,138.44,39.2813]
[1720720985724,14.0,138.48,138.44,25.2813]
[1720720987410,14.0,138.48,138.45,7.2228]
[1720720989633,14.0,138.48,138.44,25.2813]
[1720720989928,21.2212,138.48,138.44,25.2813]
[1720720990122,21.2212,138.48,138.44,18.0582]
[1720720990326,14.0,138.47,138.43,7.2236]
[1720720990635,21.2212,138.48,138.43,7.2236]
[1720720990935,21.2212,138.48,138.43,21.2236]
[1720720991528,14.0,138.47,138.43,7.2236]
[1720720992333,21.2218,138.47,138.43,7.2236]
[1720720992633,14.0,138.46,138.42,7.2242]
[1720720993133,14.0,138.46,138.43,7.2237]
[1720720993317,14.0,138.47,138.43,7.2237]
[1720720993516,21.38489616,138.47,138.43,7.2237]
[1720720993912,7.38489616,138.47,138.43,7.2237]
[1720720996031,7.38489616,138.47,138.45,7.2227]
[1720720996332,14.0,138.49,138.45,7.2227]
[1720720996724,21.2208,138.49,138.44,39.2813]
[1720720996926,7.2208,138.49,138.44,39.2813]
[1720720997127,21.2208,138.49,138.45,7.2227]
[1720720997332,14.0,138.49,138.45,7.2227]
[1720720997728,14.60365139,138.5,138.45,7.2227]
[1720720997915,14.0,138.48,138.45,7.2227]
[1720720998836,41.2207,138.49,138.44,39.2813]
[1720720999037,34.0,138.49,138.45,7.2227]
[1720720999842,20.0,138.49,138.45,7.2227]
[1720721000040,34.0,138.49,138.45,7.2227]
[1720721000344,7.38325139,138.5,138.46,7.2222]
[1720721000945,21.38325139,138.5,138.46,7.2222]
[1720721001545,28.60345139,138.5,138.45,21.2226]
[1720721002141,21.2207,138.49,138.45,7.2226]
[1720721002333,14.0,138.49,138.45,7.2226]
[1720721002649,14.0,138.49,138.46,7.2222]
[1720721003152,14.0,138.49,138.45,7.2226]
[1720721003457,14.0,138.49,138.46,7.2222]
[1720721003650,21.38325139,138.5,138.46,7.2222]
[1720721004252,21.38325139,138.5,138.45,14.0]
[1720721004253,28.60345139,138.5,138.45,21.2226]
[1720721005844,28.60345139,138.5,138.44,40.7103]
[1720721005845,7.2209,138.49,138.44,47.9336]
[1720721006053,14.0,138.49,138.44,39.2815]
[1720721006554,14.0,138.48,138.44,25.2815]
[1720721006928,14.60365139,138.5,138.45,7.2227]
[1720721007139,14.0,138.49,138.45,7.2227]
[1720721007351,14.24919,138.49,138.45,7.2227]
[1720721008149,0.24919,138.49,138.45,7.2227]
[1720721009641,0.24919,138.49,138.45,21.2227]
[1720721010341,0.24919,138.49,138.45,7.2227]
[1720721010739,14.24919,138.49,138.45,7.2227]
[1720721011500,14.24919,138.49,138.46,7.2222]
[1720721011842,0.24919,138.49,138.46,7.2222]
[1720721017369,0.24919,138.49,138.47,7.2217]
[1720721017578,0.24919,138.49,138.48,7.2212]
[1720721018250,0.24919,138.49,138.48,8.66186179]
[1720721019662,0.24919,138.49,138.48,22.66186179]
[1720721020075,0.24919,138.49,138.48,8.66186179]
[1720721021187,0.24919,138.49,138.48,7.2212]
[1720721021355,0.24919,138.49,138.48,23.00499215]
[1720721021752,0.24919,138.49,138.48,21.5612]
[1720721022154,0.24919,138.49,138.48,66.5612]
[1720721024186,0.24919,138.49,138.48,67.01882186]
[1720721024679,0.24919,138.49,138.48,66.5612]
[1720721029178,0.24919,138.49,138.48,52.5612]
[1720721029554,0.24919,138.49,138.48,66.5612]
[1720721030262,0.24919,138.49,138.48,52.5612]
[1720721030465,0.24919,138.49,138.48,21.3912]
[1720721031492,0.24919,138.49,138.48,7.3912]
[1720721031662,0.24919,138.49,138.48,21.3912]
[1720721031866,0.24919,138.49,138.48,21.2212]
[1720721033183,0.24919,138.49,138.48,66.2212]
[1720721033354,0.24919,138.49,138.48,66.5612]
[1720721036290,0.24919,138.49,138.48,66.94915572]
[1720721037682,16.0148,138.59,138.53,18.0456]
[1720721037900,16.0148,138.59,138.54,45.38832965]
[1720721038075,30.0148,138.59,138.55,18.43220162]
[1720721038668,32.49108378,138.62,138.57,7.2161]
[1720721038868,21.38434275,138.61,138.58,45.0]
[1720721039088,7.38434275,138.61,138.58,52.2159]
[1720721039683,7.38434275,138.61,138.58,45.0]
[1720721039887,21.38434275,138.61,138.57,25.2574]
[1720721040186,14.0,138.6,138.56,7.217]
[1720721040778,14.0,138.59,138.55,7.2174]
[1720721041071,14.0,138.59,138.56,45.0]
[1720721041266,28.59894275,138.61,138.56,63.0426]
[1720721041461,21.38434275,138.61,138.57,7.2161]
[1720721041666,21.38434275,138.61,138.58,7.2159]
[1720721041667,7.38434275,138.61,138.58,7.2159]
[1720721041869,7.38434275,138.61,138.56,63.0426]
[1720721041870,6.38434275,138.61,138.6,7.215]
[1720721042066,7.2125,138.65,138.6,52.215]
[1720721042295,31.89098378,138.66,138.61,8.65667351]
[1720721042474,29.6697,138.66,138.63,7.2129]
[1720721042989,13.2642,138.68,138.63,25.2464]
[1720721043285,32.91568378,138.7,138.65,7.2123]
[1720721043489,32.91568378,138.7,138.64,21.2127]
[1720721043680,14.0,138.69,138.64,21.2127]
[1720721044001,7.2112,138.68,138.63,18.0335]
[1720721044172,14.0,138.67,138.65,7.2123]
[1720721044592,16.6965,138.7,138.66,45.0]
[1720721044897,14.0,138.68,138.66,52.2117]
[1720721045077,14.0,138.68,138.66,45.0]
[1720721046092,14.0,138.68,138.64,7.2128]
[1720721046301,14.0,138.68,138.65,52.2123]
[1720721046783,7.2103,138.69,138.65,45.0]
[1720721046983,14.0,138.68,138.65,45.0]
[1720721047186,14.0,138.67,138.65,45.0]
[1720721047596,16.6965,138.7,138.62,7.2135]
[1720721047787,14.0,138.66,138.63,45.0]
[1720721047976,14.0,138.67,138.63,52.2134]
[1720721048294,7.2109,138.68,138.65,7.2122]
[1720721048295,14.0,138.68,138.65,7.2122]
[1720721048876,21.2108,138.68,138.63,84.2459]
[1720721049201,14.0,138.66,138.63,63.0327]
[1720721049496,14.0,138.66,138.63,18.0327]
[1720721049696,14.0,138.66,138.63,25.246]
[1720721049882,14.0,138.67,138.64,7.2128]
[1720721050082,14.0,138.68,138.65,7.2123]
[1720721050284,14.0,138.68,138.64,7.2127]
[1720721050581,14.0,138.68,138.65,45.0]
[1720721051393,14.0,138.68,138.65,44.5]
[1720721051802,14.0,138.67,138.65,44.5]
[1720721052303,14.0,138.67,138.63,25.2461]
[1720721054100,27.2105,138.69,138.65,7.2123]
[1720721054400,34.0,138.69,138.65,25.2432]
[1720721054592,34.0,138.69,138.66,52.2115]
[1720721054998,34.0,138.69,138.65,25.243]
[1720721055186,14.0,138.68,138.64,7.2127]
[1720721055387,14.0,138.67,138.65,45.0]
[1720721055598,14.0,138.66,138.63,7.2132]
[1720721055787,14.0,138.66,138.64,45.0]
[1720721056195,14.0,138.66,138.63,52.2132]
[1720721056383,14.0,138.67,138.64,7.2129]
[1720721056579,14.0,138.67,138.63,45.0]
[1720721056783,14.0,138.67,138.63,52.2132]
[1720721057806,14.0,138.67,138.64,7.2128]
[1720721058201,14.0,138.67,138.63,52.2132]
[1720721058394,14.0,138.67,138.62,25.2476]
[1720721058395,7.2113,138.67,138.62,25.2476]
[1720721058598,14.0,138.64,138.61,7.2143]
[1720721058993,14.0,138.65,138.61,7.2143]
[1720721060595,14.0,138.65,138.62,7.2139]
[1720721061104,14.0,138.63,138.58,18.0396]
[1720721061311,14.0,138.61,138.58,25.2552]
[1720721062297,14.0,138.6,138.57,6.2163]
[1720721062507,14.0,138.59,138.57,6.2163]
[1720721062890,14.0,138.59,138.56,7.2169]
[1720721063090,14.0,138.59,138.57,7.2163]
[1720721063502,14.0,138.59,138.58,7.216]
[1720721063703,14.0,138.6,138.58,7.216]
[1720721064033,14.0,138.61,138.57,18.0411]
[1720721064310,6.0924,138.65,138.6,7.2146]
[1720721064514,14.0,138.63,138.6,7.2146]
[1720721065721,6.0924,138.65,138.58,52.2159]
[1720721065894,6.0924,138.65,138.56,18.0416]
[1720721065895,14.0,138.6,138.56,18.0416]
[1720721066093,14.0,138.6,138.57,52.2161]
[1720721066806,7.2136,138.63,138.57,52.2161]
[1720721067014,14.0,138.61,138.58,7.2157]
[1720721067407,14.0,138.6,138.57,52.2165]
[1720721067610,14.0,138.6,138.57,45.0]
[1720721068414,14.0,138.6,138.56,25.2585]
[1720721069217,20.0,138.62,138.58,18.0397]
[1720721069419,14.0,138.62,138.59,45.0]
[1720721069612,20.0,138.64,138.59,45.0]
[1720721069814,14.0,138.63,138.59,45.0]
[1720721070004,14.0,138.63,138.6,7.2149]
[1720721070406,14.0,138.62,138.59,52.2154]
[1720721070813,14.0,138.62,138.6,7.2149]
[1720721071008,14.0,138.63,138.6,7.2149]
[1720721071210,14.0,138.63,138.59,52.2153]
[1720721071529,14.0,138.62,138.59,52.2153]
[1720721071826,14.0,138.61,138.57,7.216]
[1720721072124,14.0,138.6,138.58,45.0]
[1720721074314,14.0,138.6,138.58,52.216]
[1720721074510,7.2136,138.63,138.58,7.216]
[1720721074718,14.0,138.6,138.58,7.216]
[1720721074916,14.0,138.61,138.58,7.216]
[1720721075220,14.0,138.61,138.59,7.2154]
[1720721076030,14.0,138.61,138.58,7.2158]
[1720721077228,14.0,138.61,138.57,25.2576]
[1720721077524,14.0,138.6,138.57,18.0412]
[1720721077734,14.0,138.59,138.55,7.2175]
[1720721077911,14.0,138.59,138.56,7.217]
[1720721078116,14.0,138.59,138.55,7.2173]
[1720721078318,7.2146,138.61,138.56,52.2169]
[1720721078626,14.0,138.59,138.56,52.2169]
[1720721079832,14.0,138.59,138.57,7.2164]
[1720721084321,14.0,138.59,138.56,70.2594]
[1720721084836,27.2132,138.64,138.59,7.2151]
[1720721085040,14.0,138.62,138.59,7.2151]
[1720721085245,20.0,138.61,138.59,7.2151]
[1720721086239,14.0,138.63,138.59,7.2151]
[1720721086439,34.0,138.62,138.59,7.2151]
[1720721087235,34.0,138.62,138.58,25.2559]
[1720721087421,34.0,138.62,138.59,45.0]
[1720721087745,20.0,138.62,138.59,45.0]
[1720721087938,34.0,138.62,138.59,45.0]
[1720721088631,7.2129,138.64,138.59,52.2154]
[1720721088843,20.0,138.63,138.59,66.2154]
[1720721089040,15.2059,138.66,138.6,32.0373]
[1720721089225,14.0,138.65,138.61,52.2144]
[1720721089423,14.0,138.65,138.61,45.0]
[1720721089424,21.2125,138.65,138.61,45.0]
[1720721090530,21.2125,138.65,138.61,52.2144]
[1720721091745,14.0,138.65,138.61,52.2144]
[1720721091945,21.2121,138.66,138.61,52.2144]
[1720721092244,20.0,138.65,138.62,7.2139]
[1720721092465,20.0,138.65,138.63,45.0]
[1720721093050,41.2119,138.66,138.63,45.0]
[1720721093351,41.2119,138.66,138.62,45.0]
[1720721093841,34.0,138.66,138.62,52.2138]
[1720721094060,41.2118,138.66,138.62,45.0]
[1720721094244,27.2118,138.66,138.62,45.0]
[1720721094535,41.2118,138.66,138.62,45.0]
[1720721095250,27.2118,138.66,138.62,45.0]
[1720721095444,41.2118,138.66,138.62,45.0]
[1720721095644,20.0,138.66,138.62,52.2139]
[1720721095848,34.0,138.66,138.62,52.2139]
[1720721097346,41.2119,138.66,138.62,45.0]
[1720721099451,27.2119,138.66,138.62,52.2139]
[1720721099639,34.0,138.66,138.62,52.2139]
[1720721100634,41.2119,138.66,138.62,52.2139]
[1720721100835,41.2119,138.66,138.62,45.0]
[1720721101962,14.0,138.65,138.62,45.0]
[1720721102256,20.0,138.66,138.62,45.0]
[1720721102451,14.0,138.65,138.62,45.0]
[1720721102631,14.0,138.65,138.62,52.2138]
[1720721102954,14.0,138.66,138.62,52.2138]
[1720721103566,0.5,138.7,138.62,52.2138]
[1720721103567,0.5,138.7,138.66,7.2118]
[1720721103859,14.5,138.7,138.67,46.4379663]
[1720721104245,14.0,138.69,138.67,45.0]
[1720721104960,14.0,138.68,138.64,25.2448]
[1720721105159,14.0,138.68,138.65,45.0]
[1720721105561,21.2109,138.68,138.65,45.0]
[1720721105756,14.0,138.67,138.65,45.0]
[1720721106960,14.0,138.66,138.62,7.2137]
[1720721107170,7.2114,138.67,138.63,45.0]
[1720721107171,14.0,138.65,138.63,45.0]
[1720721107544,14.0,138.66,138.63,52.2132]
[1720721108162,14.0,138.66,138.63,45.0]
[1720721108372,14.0,138.64,138.61,7.2141]
[1720721108756,14.0,138.65,138.61,7.2141]
[1720721108974,16.31,138.69,138.62,18.0348]
[1720721109149,14.0,138.66,138.64,7.2129]
[1720721109467,14.0,138.67,138.64,7.2129]
[1720721109663,14.0,138.67,138.65,7.2123]
[1720721109970,34.0,138.68,138.65,7.2123]
[1720721110770,14.0,138.67,138.64,25.2448]
[1720721110958,14.0,138.67,138.65,45.0]
[1720721111575,16.31,138.69,138.65,45.0]
[1720721111773,14.0,138.68,138.65,45.0]
[1720721112554,0.5,138.7,138.65,45.0]
[1720721112769,14.0,138.69,138.65,45.0]
[1720721112967,14.0,138.69,138.66,7.2117]
[1720721113356,14.5,138.7,138.67,45.0]
[1720721113560,20.0,138.69,138.67,45.0]
[1720721114255,34.0,138.69,138.67,45.0]
[1720721114461,41.2104,138.69,138.66,45.0]
[1720721114667,41.2104,138.69,138.65,45.0]
[1720721115252,41.2104,138.69,138.65,52.2123]
[1720721115470,34.0,138.69,138.65,52.2123]
[1720721117076,34.0,138.69,138.66,7.2116]
[1720721117267,20.0,138.69,138.67,45.0]
[1720721117476,34.5,138.7,138.67,45.0]
[1720721118675,0.5,138.7,138.68,18.0267]
[1720721118880,0.5,138.7,138.69,66.2103]
[1720721119049,0.5,138.7,138.69,66.3803]
[1720721120077,0.5,138.7,138.69,45.17]
[1720721120575,0.5,138.7,138.69,45.0]
[1720721121051,0.5,138.7,138.68,45.0]
[1720721121251,0.5,138.7,138.68,52.2108]
[1720721121671,0.5,138.7,138.69,7.2103]
[1720721121868,0.5,138.7,138.69,45.0]
[1720721122855,0.5,138.7,138.67,25.2394]
[1720721123077,0.5,138.7,138.68,45.0]
[1720721123270,14.5,138.7,138.68,45.0]
[1720721123470,14.5,138.7,138.67,25.2394]
[1720721123672,14.5,138.7,138.68,7.2107]
[1720721123983,0.5,138.7,138.69,7.2103]
[1720721125279,0.5,138.7,138.69,52.2103]
[1720721126069,0.5,138.7,138.68,25.2364]
[1720721126659,0.5,138.7,138.69,7.2103]
[1720721127359,0.5,138.7,138.69,52.2103]
[1720721127871,0.5,138.7,138.68,25.2365]
[1720721128485,0.5,138.7,138.69,7.2103]
[1720721129282,0.5,138.7,138.68,25.2364]
[1720721130383,14.5,138.7,138.68,18.0258]
[1720721130787,14.5,138.7,138.68,25.2365]
[1720721131792,0.5,138.7,138.68,25.2365]
[1720721132972,0.5,138.7,138.69,7.2103]
[1720721133385,0.5,138.7,138.69,52.2103]
[1720721133877,0.5,138.7,138.69,66.3803]
[1720721134077,0.5,138.7,138.69,66.5503]
[1720721134872,0.5,138.7,138.69,87.8304]
[1720721137077,0.5,138.7,138.69,73.8304]
[1720721137393,0.5,138.7,138.69,87.8304]
[1720721140870,15.925,138.8,138.77,18.0152]
[1720721141077,29.925,138.8,138.78,7.2051]
[1720721141488,14.0,138.8,138.78,7.2051]
[1720721141797,14.0,138.81,138.78,7.2051]
[1720721142297,22.63,138.83,138.79,7.205]
[1720721142298,15.427,138.83,138.79,7.205]
[1720721142595,14.0,138.82,138.79,7.205]
[1720721142768,8.0246755,138.84,138.79,7.205]
[1720721143403,14.0,138.82,138.79,7.205]
[1720721144118,14.0,138.8,138.75,14.0]
[1720721144401,14.0,138.8,138.76,52.2065]
[1720721144700,7.2042,138.81,138.76,52.2065]
[1720721145095,8.0249755,138.84,138.79,7.2049]
[1720721145295,27.203,138.83,138.79,7.2049]
[1720721145496,7.2036,138.82,138.77,18.0148]
[1720721145790,20.0,138.81,138.77,25.2205]
[1720721145985,20.0,138.81,138.78,7.2051]
[1720721146192,20.0,138.81,138.78,52.2051]
[1720721146388,20.0,138.82,138.78,7.2051]
[1720721146795,27.2035,138.82,138.77,25.2207]
[1720721149012,20.0,138.82,138.78,7.2056]
[1720721150702,20.0,138.82,138.79,7.205]
[1720721150895,20.0,138.83,138.79,7.205]
[1720721151486,27.2031,138.83,138.79,7.205]
[1720721151688,7.2036,138.82,138.77,18.0148]
[1720721151895,20.0,138.81,138.77,18.0148]
[1720721152292,20.0,138.81,138.79,18.0123]
[1720721152492,0.8221755,138.84,138.79,18.0123]
[1720721152695,0.8221755,138.84,138.81,7.2036]
[1720721154397,20.8221755,138.84,138.8,25.2145]
[1720721156491,20.8221755,138.84,138.81,7.2039]
[1720721157015,20.0,138.83,138.81,7.2039]
[1720721157190,0.8221755,138.84,138.81,7.2039]
[1720721157604,0.8221755,138.84,138.8,25.2145]
[1720721157798,0.8221755,138.84,138.81,45.0]
[1720721159393,8.0247755,138.84,138.8,18.0102]
[1720721159710,27.2031,138.83,138.79,7.2049]
[1720721159905,7.2031,138.83,138.79,7.2049]
[1720721160113,8.0248755,138.84,138.79,7.2049]
[1720721160290,20.0,138.83,138.79,7.2049]
[1720721160704,27.2033,138.83,138.78,25.2194]
[1720721160906,20.0,138.83,138.78,18.014]
[1720721161111,7.2031,138.83,138.78,25.2195]
[1720721161628,7.2031,138.83,138.79,7.205]
[1720721161987,7.2031,138.83,138.78,25.2194]
[1720721162216,8.0248755,138.84,138.79,7.205]
[1720721162895,20.0,138.83,138.79,7.205]
[1720721163094,0.8221755,138.84,138.8,18.0113]
[1720721163430,0.8221755,138.84,138.81,52.2037]
[1720721163721,0.8221755,138.84,138.81,7.2037]
[1720721164017,20.8221755,138.84,138.8,25.2157]
[1720721164305,28.0249755,138.84,138.8,25.2157]
[1720721164610,13.99,138.82,138.8,25.2157]
[1720721164793,13.99,138.83,138.81,7.204]
[1720721165217,13.99,138.83,138.8,25.2157]
[1720721166518,20.8221755,138.84,138.81,7.2039]
[1720721166719,14.8121755,138.84,138.81,7.2039]
[1720721167091,0.8221755,138.84,138.81,7.2039]
[1720721167296,14.8121755,138.84,138.81,7.2039]
[1720721167997,13.99,138.83,138.81,7.2039]
[1720721168324,13.99,138.83,138.8,25.2158]
[1720721168500,13.99,138.83,138.81,45.0]
[1720721169519,13.99,138.83,138.81,52.204]
[1720721170309,14.8121755,138.84,138.81,52.204]
[1720721171117,0.8221755,138.84,138.81,52.204]
[1720721171414,0.8221755,138.84,138.82,7.2034]
[1720721171621,0.8221755,138.84,138.81,76.9989]
[1720721172001,0.8221755,138.84,138.82,1.43812747]
[1720721172322,0.8221755,138.84,138.83,1.44045954]
[1720721173318,0.8221755,138.84,138.83,53.64345954]
[1720721173519,0.8221755,138.84,138.83,85.64105954]
[1720721173709,0.8221755,138.84,138.83,84.2006]
[1720721175102,0.8221755,138.84,138.83,63.0076]
[1720721175292,0.8221755,138.84,138.83,52.203]
[1720721176908,0.8221755,138.84,138.82,7.2033]
[1720721177117,14.8121755,138.84,138.82,7.2033]
[1720721177496,0.8221755,138.84,138.83,7.203]
[1720721178121,0.8221755,138.84,138.82,7.2034]
[1720721184421,14.8121755,138.84,138.81,25.2129]
[1720721184809,13.99,138.83,138.81,18.009]
[1720721185008,13.99,138.82,138.79,7.2048]
[1720721185223,13.99,138.82,138.78,18.0129]
[1720721185526,13.99,138.81,138.78,18.0129]
[1720721186129,13.99,138.81,138.79,7.205]
[1720721186930,11.49,138.81,138.79,7.205]
[1720721187625,13.99,138.82,138.8,7.2046]
[1720721188435,13.99,138.82,138.79,7.2049]
[1720721191333,0.8221755,138.84,138.77,13.99]
[1720721191529,12.99898996,138.83,138.82,7.2035]
[1720721191739,33.99,138.83,138.82,7.2035]
[1720721191909,46.98873932,138.83,138.81,25.2141]
[1720721192109,13.99,138.82,138.81,25.2141]
[1720721192327,33.99,138.83,138.81,25.2141]
[1720721192526,20.0,138.83,138.81,25.2141]
[1720721192827,0.8221755,138.84,138.81,18.0102]
[1720721193008,14.8121755,138.84,138.81,18.0102]
[1720721193411,14.8121755,138.84,138.82,7.2033]
[1720721195912,14.8121755,138.84,138.81,25.214]
[1720721198855,0.8221755,138.84,138.81,25.214]
[1720721200842,14.8121755,138.84,138.81,18.0102]
[1720721201143,14.8121755,138.84,138.81,25.2142]
[1720721202034,0.8221755,138.84,138.81,25.2142]
[1720721203019,14.8121755,138.84,138.81,25.2142]
[1720721203635,0.8221755,138.84,138.81,25.2142]
[1720721203840,0.8221755,138.84,138.82,52.2034]
[1720721205739,0.8221755,138.84,138.82,45.0]
[1720721209850,14.8121755,138.84,138.82,45.0]
[1720721210544,0.8221755,138.84,138.82,45.0]
[1720721211046,0.8221755,138.84,138.81,25.214]
[1720721213027,12.99863158,138.83,138.78,18.013]
[1720721213233,13.99,138.79,138.75,36.0346]
[1720721213445,13.99,138.78,138.76,7.2065]
[1720721213650,13.99,138.77,138.75,25.2242]
[1720721213944,13.99,138.77,138.73,7.2077]
[1720721214159,13.99,138.77,138.74,7.2076]
[1720721214345,13.99,138.76,138.73,7.208]
[1720721214538,13.99,138.76,138.74,7.2077]
[1720721214939,7.2052,138.79,138.74,7.2077]
[1720721215142,13.99,138.76,138.74,7.2077]
[1720721218654,13.99,138.76,138.73,7.208]
[1720721218844,13.99,138.75,138.73,7.208]
[1720721219055,13.99,138.75,138.72,25.2291]
[1720721219249,13.99,138.74,138.73,45.0]
[1720721219843,13.99,138.74,138.72,18.0206]
[1720721220353,13.99,138.73,138.72,18.0206]
[1720721220734,13.99,138.73,138.7,7.2096]
[1720721220937,13.99,138.71,138.69,25.2347]
[1720721222353,13.99,138.74,138.66,18.0288]
[1720721222545,13.99,138.68,138.67,7.211]
[1720721224146,13.99,138.69,138.67,7.211]
[1720721224352,13.99,138.68,138.67,7.211]
[1720721224936,13.99,138.68,138.64,7.2127]
[1720721225138,13.99,138.65,138.64,7.2127]
[1720721225758,13.99,138.66,138.64,7.2127]
[1720721226447,13.99,138.65,138.64,7.2127]
[1720721226654,13.99,138.66,138.64,52.2127]
[1720721228054,13.99,138.65,138.61,7.2141]
[1720721228361,13.99,138.64,138.6,18.0366]
[1720721228849,13.99,138.63,138.6,18.0366]
[1720721229051,13.99,138.63,138.6,25.2511]
[1720721229251,13.99,138.62,138.6,25.2513]
[1720721230644,13.99,138.62,138.6,18.0366]
[1720721230851,13.99,138.62,138.59,7.2153]
[1720721231039,13.99,138.61,138.59,7.2153]
[1720721231244,13.99,138.61,138.58,7.2158]
[1720721233342,13.99,138.61,138.57,25.2566]